Workbook

Sheet Setup
A1: Μέγεθος ταμπλό: | B1: 8
A3: Διοργανωτής: | B3: Ζ΄ ΕΝΩΣΗ
A4: Τίτλος Τουρνουά: | B4: 3ο Ε3 2016
A5: grade: | B5: e3
A6: age: | B6: 16
A7: Έδρα αγώνων: | B7: Γ.Σ. ΛΙΒΥΚΟΣ ΙΕΡΑΠ. | D7: 1 2 7 4 6 3 5 8
A8: Κατηγορία: | B8: Κ16 | D8: 1 2 3 4
A9: Έναρξη: | B9: 22 | D9: 0 0 0 0 0 0 0
A10: Λήξη: | B10: 23 Οκτωβρίου
A11: Επιδιατητής: | B11: Κ. Χατζηδάκης | D11: 0 | E11: seed | F11: space pos | G11: Index | H11: Value
A12: Τηλέφωνο επιδ: | B12: 6948254785 | D12: =IF(E12="-","-",IF(E12>0,D11+1,0)) -> 1 | E12: =IF(F12>0,VALUE(MID($D$7,1,F12-1)),"-") -> 1 | F12: =IF(LEN($D$7)>1,FIND(" ",$D$7,1),0) -> 2 | G12: 1 | H12: 1
D13: =IF(E13="-","-",IF(E13>0,D12+1,0)) -> 2 | E13: =IF(F13>0,VALUE(MID($D$7,F12+1,F13-F12-1)),"-") -> 2 | F13: =IF(AND(F12>0,LEN($D$7)>F12+1),FIND(" ",$D$7,F12+1),0) -> 4 | G13: 2 | H13: 2
D14: 3 | E14: 7 | F14: 6 | G14: 3 | H14: 7
D15: 4 | E15: 4 | F15: 8 | G15: 4 | H15: 4
D16: 5 | E16: 6 | F16: 10 | G16: 5 | H16: 6
A17: Main Draw | B17: ="("&COUNTBLANK(DrawPrep!D3:D10)&")" -> (0) | D17: 6 | E17: 3 | F17: 12 | G17: 6 | H17: 3
A18: Πλήθος bye (0-4): | B18: =COUNTBLANK(DrawPrep!D3:D10) -> 0 | D18: 7 | E18: 5 | F18: 14 | G18: 7 | H18: 5
A19: Αριθμός θέσεων seeded: | B19: 2 | D19: 8 | E19: 8 | F19: 16 | G19: 8 | H19: 8
A24: md (# για off) | B24: ok
A29: =CONCATENATE(LEFT(D9;$B$18*2);LEFT(D8;$B$19*2);RandUniq($B$19+1;8-$B$18;8-$B$19-$B$18);" ")
A30: =CONCATENATE(LEFT(D9;$B$18*2);LEFT(D8;$B$19*2);RandUniq($B$19+1;8-$B$18;8-$B$19-$B$18);" ")

Sheet DrawPrep
A1: =Setup!$B$3 & ", " & Setup!$B$4 & ", " & Setup!$B$7 & ", " & Setup!$B$9 & "-" & Setup!$B$10 -> Ζ΄ ΕΝΩΣΗ, 3ο Ε3 2016, Γ.Σ. ΛΙΒΥΚΟΣ ΙΕΡΑΠ., 22-23 Οκτωβρίου | H1: =Setup!$B$8 -> Κ16
A2: α/α | B2: από | C2: Α.Μ. | D2: Ονοματεπώνυμο | E2: Σύλλογος | F2: βαθμοί | G2: Τηλέφωνο | H2: Υπογραφή | I2: SortPts | J2: Rnd
A3: 1 | C3: 29655 | D3: ΜΠΑΛΑΣΚΑ ΒΑΣΙΛΙΚΗ | E3: Ο.Α.ΧΑΝΙΩΝ | F3: 168 | I3: =IF(D3>" ",F3+J3,0) -> 168.0031 | J3: 0.003099979743
A4: 2 | C4: 31852 | D4: ΒΕΛΙΒΑΣΑΚΗ ΧΑΡΙΚΛΕΙΑ | E4: ΗΡΑΚΛΕΙΟ Ο.Α.& Α. | F4: 85 | I4: 85.04305531 | J4: 0.04305531458
A5: 3 | C5: 30527 | D5: ΒΑΡΒΕΡΑΚΗ ΜΑΡΙΑ | E5: Ο.Α.ΧΑΝΙΩΝ | F5: 73 | I5: 73.02613282 | J5: 0.0261328192
A6: 4 | C6: 33088 | D6: ΖΑΦΕΙΡΟΠΟΥΛΟΥ ΚΑΤΕΡΙΝΑ | E6: ΗΡΑΚΛΕΙΟ Ο.Α.& Α. | F6: 61 | I6: 61.00697361 | J6: 0.006973613979
A7: 5 | C7: 30596 | D7: ΚΡΟΝΤΗΡΑ ΕΛΕΝΗ | E7: ΗΡΑΚΛΕΙΟ Ο.Α.& Α. | F7: 59 | I7: 59.04541839 | J7: 0.04541838924
A8: 6 | C8: 33092 | D8: ΔΕΣΚΟΥΛΙΔΟΥ ΧΡΥΣΑΝΘΗ | E8: Α.Π.Μ.Σ.ΑΣΚΗΣΗ ΗΡΑΚΛΕΙΟΥ | F8: 53 | I8: 53.01541091 | J8: 0.01541090785
A9: 7 | C9: 30544 | D9: ΔΕΣΚΟΥΛΙΔΟΥ ΙΩΑΝΝΑ | E9: Α.Π.Μ.Σ.ΑΣΚΗΣΗ ΗΡΑΚΛΕΙΟΥ | F9: 41 | I9: 41.04375745 | J9: 0.04375745369
A10: 8 | C10: 32222 | D10: ΣΤΑΜΟΥΛΟΥ ΑΝΝΑ-ΜΑΡΙΑ | E10: Ο.Α.ΧΑΝΙΩΝ | F10: 28 | I10: 28.04090278 | J10: 0.04090278477
B13: Walk-over | E13: med
B14: α/α | C14: Α.Μ. | D14: Ονοματεπώνυμο | E14: Ν ή Ο | H14: =Setup!$B$11 -> Κ. Χατζηδάκης
B15: 1
B16: 2
B17: 3
B18: 4
B19: 5

Sheet MD
A1: =Setup!B3 & ", " & Setup!B4 & ", " & Setup!B7 & ", " & Setup!B9 & "-" & Setup!B10 -> Ζ΄ ΕΝΩΣΗ, 3ο Ε3 2016, Γ.Σ. ΛΙΒΥΚΟΣ ΙΕΡΑΠ., 22-23 Οκτωβρίου | U1: =Setup!B8 -> Κ16
B2: =Setup!$B$18 -> 0
J3: 8 | O3: 4 | R3: 2 | U3: w
A4: α/α | C4: ByeOrder | D4: ByeSum | E4: ByeCnt | F4: από | G4: seed | H4: Pts | I4: Α.Μ. | J4: Ονοματεπώνυμο | K4: επώνυμο | L4: Σύλλογος
A5: 1 | B5: 1 | E5: 0 | F5: =IF(NOT($G5="-"),VLOOKUP($G5,DrawPrep!$A$3:$G$10,2,FALSE),"") -> 0 | G5: =VLOOKUP($B5,Setup!$G$12:$H$28,2,FALSE) -> 1 | H5: =IF($G5>0,VLOOKUP($G5,DrawPrep!$A$3:$G$10,6,FALSE),0) -> 168 | I5: =IF(Setup!$B$24="#",0,IF($G5>0,VLOOKUP($G5,DrawPrep!$A$3:$G$10,3,FALSE),0)) -> 29655 | J5: =IF($I5>0,VLOOKUP($I5,DrawPrep!$C$3:$G$10,2,FALSE),"bye") -> ΜΠΑΛΑΣΚΑ ΒΑΣΙΛΙΚΗ | K5: =IF(NOT(I5>0),"", IF(ISERROR(FIND("-",J5)), LEFT(J5,FIND(" ",J5)-1), IF(FIND("-",J5)>FIND(" ",J5),LEFT(J5,FIND(" ",J5)-1), LEFT(J5,FIND("-",J5)-1) ))) -> ΜΠΑΛΑΣΚΑ | L5: =IF($I5>0,VLOOKUP($I5,DrawPrep!$C$3:$G$10,3,FALSE),"") -> Ο.Α.ΧΑΝΙΩΝ | M5: 1 | N5: =IF((OR(M5=1,M5=2)),IF(M5=1,I5,I6),"") -> 29655 | O5: =UPPER(IF($A$2="R",IF(OR(M5=1,M5="a"),I5,IF(OR(M5=2,M5="b"),I6,"")),IF(OR(M5=1,M5="1"),K5,IF(OR(M5=2,M5="b"),K6,"")))) -> ΜΠΑΛΑΣΚΑ
A6: 2 | B6: =1-D6+2 -> 3 | C6: 1 | D6: =E6 -> 0 | E6: =IF($B$2>=1,1,0) -> 0 | F6: =IF(NOT($G6="-"),VLOOKUP($G6,DrawPrep!$A$3:$G$10,2,FALSE),"") -> 0 | G6: =IF($B$2>=1,"-",VLOOKUP($B6,Setup!$G$12:$H$28,2,FALSE)) -> 7 | H6: =IF(NOT($G6="-"),VLOOKUP($G6,DrawPrep!$A$3:$G$10,6,FALSE),0) -> 41 | I6: =IF(Setup!$B$24="#",0,IF(NOT($G6="-"),VLOOKUP($G6,DrawPrep!$A$3:$G$10,3,FALSE),0)) -> 30544 | J6: =IF($I6>0,VLOOKUP($I6,DrawPrep!$C$3:$G$10,2,FALSE),"bye") -> ΔΕΣΚΟΥΛΙΔΟΥ ΙΩΑΝΝΑ | K6: ΔΕΣΚΟΥΛΙΔΟΥ | L6: =IF($I6>0,VLOOKUP($I6,DrawPrep!$C$3:$G$10,3,FALSE),"") -> Α.Π.Μ.Σ.ΑΣΚΗΣΗ ΗΡΑΚΛΕΙΟΥ | O6: 42 41 | P6: 1 | Q6: =IF((OR(P6=1,P6=2)),IF(P6=1,N5,N7),"") -> 29655 | R6: =UPPER(IF($A$2="R",IF(OR(P6=1,P6="a"),O5,IF(OR(P6=2,P6="b"),O7,"")),IF(OR(P6=1,P6="a"),O5,IF(OR(P6=2,P6="b"),O7,"")))) -> ΜΠΑΛΑΣΚΑ
A7: 3 | B7: =2-D7+2 -> 4 | D7: =D6+E7 -> 0 | E7: 0 | F7: =IF(NOT($G7="-"),VLOOKUP($G7,DrawPrep!$A$3:$G$10,2,FALSE),"") -> 0 | G7: =VLOOKUP($B7,Setup!$G$12:$H$28,2,FALSE) -> 4 | H7: =IF($G7>0,VLOOKUP($G7,DrawPrep!$A$3:$G$10,6,FALSE),0) -> 61 | I7: =IF(Setup!$B$24="#",0,IF($G7>0,VLOOKUP($G7,DrawPrep!$A$3:$G$10,3,FALSE),0)) -> 33088 | J7: =IF($I7>0,VLOOKUP($I7,DrawPrep!$C$3:$G$10,2,FALSE),"bye") -> ΖΑΦΕΙΡΟΠΟΥΛΟΥ ΚΑΤΕΡΙΝΑ | K7: ΖΑΦΕΙΡΟΠΟΥΛΟΥ | L7: =IF($I7>0,VLOOKUP($I7,DrawPrep!$C$3:$G$10,3,FALSE),"") -> ΗΡΑΚΛΕΙΟ Ο.Α.& Α. | M7: 1 | N7: =IF((OR(M7=1,M7=2)),IF(M7=1,I7,I8),"") -> 33088 | O7: =UPPER(IF($A$2="R",IF(OR(M7=1,M7="a"),I7,IF(OR(M7=2,M7="b"),I8,"")),IF(OR(M7=1,M7="a"),K7,IF(OR(M7=2,M7="b"),K8,"")))) -> ΖΑΦΕΙΡΟΠΟΥΛΟΥ | R7: 60 62
A8: 4 | B8: =3-D8+2 -> 5 | C8: 3 | D8: 0 | E8: =IF($B$2>=3,1,0) -> 0 | F8: =IF(NOT($G8="-"),VLOOKUP($G8,DrawPrep!$A$3:$G$10,2,FALSE),"") -> 0 | G8: =IF($B$2>=3,"-",VLOOKUP($B8,Setup!$G$12:$H$28,2,FALSE)) -> 6 | H8: =IF(NOT($G8="-"),VLOOKUP($G8,DrawPrep!$A$3:$G$10,6,FALSE),0) -> 53 | I8: =IF(Setup!$B$24="#",0,IF(NOT($G8="-"),VLOOKUP($G8,DrawPrep!$A$3:$G$10,3,FALSE),0)) -> 33092 | J8: =IF($I8>0,VLOOKUP($I8,DrawPrep!$C$3:$G$10,2,FALSE),"bye") -> ΔΕΣΚΟΥΛΙΔΟΥ ΧΡΥΣΑΝΘΗ | K8: ΔΕΣΚΟΥΛΙΔΟΥ | L8: =IF($I8>0,VLOOKUP($I8,DrawPrep!$C$3:$G$10,3,FALSE),"") -> Α.Π.Μ.Σ.ΑΣΚΗΣΗ ΗΡΑΚΛΕΙΟΥ | O8: 40 42 | S8: 1 | T8: =IF((OR(S8=1,S8=2)),IF(S8=1,Q6,Q10),"") -> 29655 | U8: =UPPER(IF($A$2="R",IF(OR(S8=1,S8="a"),R6,IF(OR(S8=2,S8="b"),R10,"")),IF(OR(S8=1,S8="a"),R6,IF(OR(S8=2,S8="b"),R10,"")))) -> ΜΠΑΛΑΣΚΑ
A9: 5 | B9: =4-D9+2 -> 6 | D9: 0 | E9: 0 | F9: =IF(NOT($G9="-"),VLOOKUP($G9,DrawPrep!$A$3:$G$10,2,FALSE),"") -> 0 | G9: =VLOOKUP($B9,Setup!$G$12:$H$28,2,FALSE) -> 3 | H9: =IF($G9>0,VLOOKUP($G9,DrawPrep!$A$3:$G$10,6,FALSE),0) -> 73 | I9: =IF(Setup!$B$24="#",0,IF($G9>0,VLOOKUP($G9,DrawPrep!$A$3:$G$10,3,FALSE),0)) -> 30527 | J9: =IF($I9>0,VLOOKUP($I9,DrawPrep!$C$3:$G$10,2,FALSE),"bye") -> ΒΑΡΒΕΡΑΚΗ ΜΑΡΙΑ | K9: ΒΑΡΒΕΡΑΚΗ | L9: =IF($I9>0,VLOOKUP($I9,DrawPrep!$C$3:$G$10,3,FALSE),"") -> Ο.Α.ΧΑΝΙΩΝ | M9: 1 | N9: =IF((OR(M9=1,M9=2)),IF(M9=1,I9,I10),"") -> 30527 | O9: =UPPER(IF($A$2="R",IF(OR(M9=1,M9="a"),I9,IF(OR(M9=2,M9="b"),I10,"")),IF(OR(M9=1,M9="a"),K9,IF(OR(M9=2,M9="b"),K10,"")))) -> ΒΑΡΒΕΡΑΚΗ | U9: 62 61
A10: 6 | B10: =5-D10+2 -> 7 | C10: 4 | D10: 0 | E10: =IF($B$2>=4,1,0) -> 0 | F10: =IF(NOT($G10="-"),VLOOKUP($G10,DrawPrep!$A$3:$G$10,2,FALSE),"") -> 0 | G10: =IF($B$2>=4,"-",VLOOKUP($B10,Setup!$G$12:$H$28,2,FALSE)) -> 5 | H10: =IF(NOT($G10="-"),VLOOKUP($G10,DrawPrep!$A$3:$G$10,6,FALSE),0) -> 59 | I10: =IF(Setup!$B$24="#",0,IF(NOT($G10="-"),VLOOKUP($G10,DrawPrep!$A$3:$G$10,3,FALSE),0)) -> 30596 | J10: =IF($I10>0,VLOOKUP($I10,DrawPrep!$C$3:$G$10,2,FALSE),"bye") -> ΚΡΟΝΤΗΡΑ ΕΛΕΝΗ | K10: ΚΡΟΝΤΗΡΑ | L10: =IF($I10>0,VLOOKUP($I10,DrawPrep!$C$3:$G$10,3,FALSE),"") -> ΗΡΑΚΛΕΙΟ Ο.Α.& Α. | O10: 40 40 | P10: 2 | Q10: =IF((OR(P10=1,P10=2)),IF(P10=1,N9,N11),"") -> 31852 | R10: =UPPER(IF($A$2="R",IF(OR(P10=1,P10="a"),O9,IF(OR(P10=2,P10="b"),O11,"")),IF(OR(P10=1,P10="a"),O9,IF(OR(P10=2,P10="b"),O11,"")))) -> ΒΕΛΙΒΑΣΑΚΗ
A11: 7 | B11: =6-D11+2 -> 8 | C11: 2 | D11: 0 | E11: =IF($B$2>=2,1,0) -> 0 | F11: =IF(NOT($G11="-"),VLOOKUP($G11,DrawPrep!$A$3:$G$10,2,FALSE),"") -> 0 | G11: =IF($B$2>=2,"-",VLOOKUP($B11,Setup!$G$12:$H$28,2,FALSE)) -> 8 | H11: =IF(NOT($G11="-"),VLOOKUP($G11,DrawPrep!$A$3:$G$10,6,FALSE),0) -> 28 | I11: =IF(Setup!$B$24="#",0,IF(NOT($G11="-"),VLOOKUP($G11,DrawPrep!$A$3:$G$10,3,FALSE),0)) -> 32222 | J11: =IF($I11>0,VLOOKUP($I11,DrawPrep!$C$3:$G$10,2,FALSE),"bye") -> ΣΤΑΜΟΥΛΟΥ ΑΝΝΑ-ΜΑΡΙΑ | K11: ΣΤΑΜΟΥΛΟΥ | L11: =IF($I11>0,VLOOKUP($I11,DrawPrep!$C$3:$G$10,3,FALSE),"") -> Ο.Α.ΧΑΝΙΩΝ | M11: 2 | N11: =IF((OR(M11=1,M11=2)),IF(M11=1,I11,I12),"") -> 31852 | O11: =UPPER(IF($A$2="R",IF(OR(M11=1,M11="a"),I11,IF(OR(M11=2,M11="b"),I12,"")),IF(OR(M11=1,M11="a"),K11,IF(OR(M11=2,M11="b"),K12,"")))) -> ΒΕΛΙΒΑΣΑΚΗ | R11: 61 60
A12: 8 | B12: 2 | D12: 0 | E12: 0 | F12: =IF(NOT($G12="-"),VLOOKUP($G12,DrawPrep!$A$3:$G$10,2,FALSE),"") -> 0 | G12: =VLOOKUP($B12,Setup!$G$12:$H$28,2,FALSE) -> 2 | H12: =IF($G12>0,VLOOKUP($G12,DrawPrep!$A$3:$G$10,6,FALSE),0) -> 85 | I12: =IF(Setup!$B$24="#",0,IF($G12>0,VLOOKUP($G12,DrawPrep!$A$3:$G$10,3,FALSE),0)) -> 31852 | J12: =IF($I12>0,VLOOKUP($I12,DrawPrep!$C$3:$G$10,2,FALSE),"bye") -> ΒΕΛΙΒΑΣΑΚΗ ΧΑΡΙΚΛΕΙΑ | K12: ΒΕΛΙΒΑΣΑΚΗ | L12: =IF($I12>0,VLOOKUP($I12,DrawPrep!$C$3:$G$10,3,FALSE),"") -> ΗΡΑΚΛΕΙΟ Ο.Α.& Α. | O12: 40 41
J16: seeded players | R16: επιδιαιτητής
J17: ="1. " & IF(Setup!B19>0,LEFT(DrawPrep!D3,FIND(" ",DrawPrep!D3)+1),"") -> 1. ΜΠΑΛΑΣΚΑ Β | R17: =Setup!B11 -> Κ. Χατζηδάκης
J18: ="2. " & IF(Setup!B19>1,LEFT(DrawPrep!D4,FIND(" ",DrawPrep!D4)+1),"") -> 2. ΒΕΛΙΒΑΣΑΚΗ Χ
B24: ok
J40: BoldNames
J41: =IF(Setup!$B$19>0,LEFT(DrawPrep!D3,FIND(" ",DrawPrep!D3)-1)) -> ΜΠΑΛΑΣΚΑ
J42: =IF(Setup!$B$19>1,LEFT(DrawPrep!D4,FIND(" ",DrawPrep!D4)-1)) -> ΒΕΛΙΒΑΣΑΚΗ

Sheet Day1
A1: Ζ΄ ΕΝΩΣΗ, 3ο Ε3 2016, Γ.Σ. ΛΙΒΥΚΟΣ ΙΕΡΑΠ. (Κ16)
A2: Κ. Χατζηδάκης
A3: Πρόγραμμα αγώνων | E3: Round 1 | F3: i
A4: ΩΡΑ | B4: Κτγρ. | C4: Αθλητής-Σύλλογος | E4: Αθλητής-Σύλλογος
A5: Έναρξη | B5: Κ16 | C5: ΜΠΑΛΑΣΚΑ Β (Ο.Α.ΧΑΝΙΩΝ) | D5: - | E5: ΔΕΣΚΟΥΛΙΔΟΥ Ι (Α.Π.Μ.Σ.ΑΣΚΗΣΗ ΗΡΑΚΛΕΙΟΥ)
B6: Κ16 | C6: ΖΑΦΕΙΡΟΠΟΥΛΟΥ Κ (ΗΡΑΚΛΕΙΟ Ο.Α.& Α.) | D6: - | E6: ΔΕΣΚΟΥΛΙΔΟΥ Χ (Α.Π.Μ.Σ.ΑΣΚΗΣΗ ΗΡΑΚΛΕΙΟΥ)
B7: Κ16 | C7: ΒΑΡΒΕΡΑΚΗ Μ (Ο.Α.ΧΑΝΙΩΝ) | D7: - | E7: ΚΡΟΝΤΗΡΑ Ε (ΗΡΑΚΛΕΙΟ Ο.Α.& Α.)
B8: Κ16 | C8: ΣΤΑΜΟΥΛΟΥ Α (Ο.Α.ΧΑΝΙΩΝ) | D8: - | E8: ΒΕΛΙΒΑΣΑΚΗ Χ (ΗΡΑΚΛΕΙΟ Ο.Α.& Α.)

Sheet Day2
A1: Ζ΄ ΕΝΩΣΗ, 3ο Ε3 2016, Γ.Σ. ΛΙΒΥΚΟΣ ΙΕΡΑΠ. (Κ16)
A2: Κ. Χατζηδάκης
A3: Πρόγραμμα αγώνων | E3: Round 2 | F3: i
A4: ΩΡΑ | B4: Κτγρ. | C4: Αθλητής-Σύλλογος | E4: Αθλητής-Σύλλογος
A5: Έναρξη | B5: Α12 | C5: ΟΡΦΑΝΙΔΗΣ Μ (0) | D5: - | E5: ΘΕΟΔΩΡΟΥ Κ (0)
B6: Α12 | C6: ΜΑΜΑΣΗΣ Γ (0) | D6: - | E6: ΣΤΑΥΡΙΔΗΣ Π (0)

Sheet notes

Sheet PrgPrep
A1: =Setup!B3 & ", " & Setup!B4 & ", " & Setup!B7 & " (" & Setup!B8 & ")" -> Ζ΄ ΕΝΩΣΗ, 3ο Ε3 2016, Γ.Σ. ΛΙΒΥΚΟΣ ΙΕΡΑΠ. (Κ16) | H1: Don't Change this Worksheet !
A2: =Setup!$B$11 -> Κ. Χατζηδάκης
A3: Πρόγραμμα αγώνων | E3: Round 1 | F3: i
A4: ΩΡΑ | B4: Κτγρ. | C4: Αθλητής-Σύλλογος | E4: Αθλητής-Σύλλογος
A5: Έναρξη | B5: =Setup!$B$8 -> Κ16 | C5: =IF(OR(MD!J5="bye",MD!J5="LWD"), "",CONCATENATE(LEFT(MD!J5,FIND(" ",MD!J5)+1)," (",MD!L5,")")) -> ΜΠΑΛΑΣΚΑ Β (Ο.Α.ΧΑΝΙΩΝ) | D5: =IF(OR(C5="",E5="")," ","-") -> - | E5: =IF(OR(MD!J6="bye",MD!J6="LWD"), "",CONCATENATE(LEFT(MD!J6,FIND(" ",MD!J6)+1)," (",MD!L6,")")) -> ΔΕΣΚΟΥΛΙΔΟΥ Ι (Α.Π.Μ.Σ.ΑΣΚΗΣΗ ΗΡΑΚΛΕΙΟΥ)
B6: =Setup!$B$8 -> Κ16 | C6: =IF(OR(MD!J7="bye",MD!J7="LWD"), "",CONCATENATE(LEFT(MD!J7,FIND(" ",MD!J7)+1)," (",MD!L7,")")) -> ΖΑΦΕΙΡΟΠΟΥΛΟΥ Κ (ΗΡΑΚΛΕΙΟ Ο.Α.& Α.) | D6: =IF(OR(C6="",E6="")," ","-") -> - | E6: =IF(OR(MD!J8="bye",MD!J8="LWD"), "",CONCATENATE(LEFT(MD!J8,FIND(" ",MD!J8)+1)," (",MD!L8,")")) -> ΔΕΣΚΟΥΛΙΔΟΥ Χ (Α.Π.Μ.Σ.ΑΣΚΗΣΗ ΗΡΑΚΛΕΙΟΥ)
B7: =Setup!$B$8 -> Κ16 | C7: =IF(OR(MD!J9="bye",MD!J9="LWD"), "",CONCATENATE(LEFT(MD!J9,FIND(" ",MD!J9)+1)," (",MD!L9,")")) -> ΒΑΡΒΕΡΑΚΗ Μ (Ο.Α.ΧΑΝΙΩΝ) | D7: =IF(OR(C7="",E7="")," ","-") -> - | E7: =IF(OR(MD!J10="bye",MD!J10="LWD"), "",CONCATENATE(LEFT(MD!J10,FIND(" ",MD!J10)+1)," (",MD!L10,")")) -> ΚΡΟΝΤΗΡΑ Ε (ΗΡΑΚΛΕΙΟ Ο.Α.& Α.)
B8: =Setup!$B$8 -> Κ16 | C8: =IF(OR(MD!J11="bye",MD!J11="LWD"), "",CONCATENATE(LEFT(MD!J11,FIND(" ",MD!J11)+1)," (",MD!L11,")")) -> ΣΤΑΜΟΥΛΟΥ Α (Ο.Α.ΧΑΝΙΩΝ) | D8: =IF(OR(C8="",E8="")," ","-") -> - | E8: =IF(OR(MD!J12="bye",MD!J12="LWD"), "",CONCATENATE(LEFT(MD!J12,FIND(" ",MD!J12)+1)," (",MD!L12,")")) -> ΒΕΛΙΒΑΣΑΚΗ Χ (ΗΡΑΚΛΕΙΟ Ο.Α.& Α.)
A18: Πρόγραμμα αγώνων | E18: Round 2 | F18: i
A19: ΩΡΑ | B19: Κτγρ. | C19: Αθλητής-Σύλλογος | E19: Αθλητής-Σύλλογος
A20: Έναρξη | B20: =Setup!$B$8 -> Κ16 | C20: =IF(MD!M5="", "", IF(MD!M5=1, CONCATENATE(LEFT(MD!J5,FIND(" ",MD!J5)+1)," (",MD!L5,")"),CONCATENATE(LEFT(MD!J6,FIND(" ",MD!J6)+1)," (",MD!L6,")"))) -> ΜΠΑΛΑΣΚΑ Β (Ο.Α.ΧΑΝΙΩΝ) | D20: =IF(OR(C20="",E20="")," ","-") -> - | E20: =IF(MD!M7="", "", IF(MD!M7=1, CONCATENATE(LEFT(MD!J7,FIND(" ",MD!J7)+1)," (",MD!L7,")"),CONCATENATE(LEFT(MD!J8,FIND(" ",MD!J8)+1)," (",MD!L8,")"))) -> ΖΑΦΕΙΡΟΠΟΥΛΟΥ Κ (ΗΡΑΚΛΕΙΟ Ο.Α.& Α.)
B21: =Setup!$B$8 -> Κ16 | C21: =IF(MD!M9="", "", IF(MD!M9=1, CONCATENATE(LEFT(MD!J9,FIND(" ",MD!J9)+1)," (",MD!L9,")"),CONCATENATE(LEFT(MD!J10,FIND(" ",MD!J10)+1)," (",MD!L10,")"))) -> ΒΑΡΒΕΡΑΚΗ Μ (Ο.Α.ΧΑΝΙΩΝ) | D21: =IF(OR(C21="",E21="")," ","-") -> - | E21: =IF(MD!M11="", "", IF(MD!M11=1, CONCATENATE(LEFT(MD!J11,FIND(" ",MD!J11)+1)," (",MD!L11,")"),CONCATENATE(LEFT(MD!J12,FIND(" ",MD!J12)+1)," (",MD!L12,")"))) -> ΒΕΛΙΒΑΣΑΚΗ Χ (ΗΡΑΚΛΕΙΟ Ο.Α.& Α.)
A30: Don't Change this Worksheet !

Sheet tables
A1: RndIndx | B1: random | C1: FixRandom | F1: 1ος | G1: 2ος | H1: 3-4 | I1: 5-8 | J1: 9-16 | K1: 17-32 | P1: Category | Q1: Juniors | R1: Serniors
A2: 1 | B2: =RAND()/222 -> 0.000749193721 | C2: 0.003099979743 | E2: E1-12 | F2: 30 | G2: 25 | H2: 15 | I2: 10 | J2: 7.5 | K2: 5 | P2: Α10 | Q2: Α10 | R2: m35
A3: 2 | B3: =RAND()/22 -> 0.005955694364 | C3: 0.04305531458 | E3: E1-14 | F3: 60 | G3: 50 | H3: 30 | I3: 20 | J3: 15 | K3: 10 | P3: Α12 | Q3: Α12 | R3: m40
A4: 3 | B4: =RAND()/22 -> 0.03819004406 | C4: 0.0261328192 | E4: E1-16 | F4: 120 | G4: 100 | H4: 60 | I4: 40 | J4: 30 | K4: 20 | P4: Α14 | Q4: Α14 | R4: m45
A5: 4 | B5: =RAND()/22 -> 0.03549006063 | C5: 0.006973613979 | E5: E1-18 | F5: 150 | G5: 125 | H5: 75 | I5: 50 | J5: 37.5 | K5: 25 | P5: Α16 | Q5: Α16 | R5: m50
A6: 5 | B6: =RAND()/22 -> 0.04140833988 | C6: 0.04541838924 | E6: E2-12 | F6: 15 | G6: 12.5 | H6: 7.5 | I6: 5 | J6: 4 | K6: 2.5 | P6: Α18 | Q6: Α18 | R6: m55
A7: 6 | B7: 0.006610961869 | C7: 0.01541090785 | E7: E2-14 | F7: 30 | G7: 25 | H7: 15 | I7: 10 | J7: 8 | K7: 5 | P7: Κ10 | Q7: Κ10 | R7: m60
A8: 7 | B8: 0.04245248967 | C8: 0.04375745369 | E8: E2-16 | F8: 60 | G8: 50 | H8: 30 | I8: 20 | J8: 16 | K8: 10 | P8: Κ12 | Q8: Κ12 | R8: m65
A9: 8 | B9: =RAND()/22 -> 0.01681982958 | C9: 0.04090278477 | E9: E3-12 | F9: 6 | G9: 5 | H9: 3 | I9: 2 | J9: 1.5 | K9: 1 | P9: Κ14 | Q9: Κ14 | R9: m70
E10: E3-14 | F10: 12 | G10: 10 | H10: 6 | I10: 4 | J10: 3 | K10: 2 | P10: Κ16 | Q10: Κ16 | R10: m75
E11: E3-16 | F11: 24 | G11: 20 | H11: 12 | I11: 8 | J11: 6 | K11: 4 | P11: Κ18 | Q11: Κ18 | R11: w35
E12: E4-12 | F12: 3 | G12: 2.5 | H12: 1.5 | I12: 1 | J12: 0.75 | K12: 0.5 | P12: ΑΝΔ | Q12: ΑΝΔ | R12: w40
E13: E4-14 | F13: 6 | G13: 5 | H13: 3 | I13: 2 | J13: 1.5 | K13: 1 | P13: ΓΥΝ | Q13: ΓΥΝ | R13: w45
E14: E4-16 | F14: 12 | G14: 10 | H14: 6 | I14: 4 | J14: 3 | K14: 2 | P14: - | Q14: - | R14: w50
P15: - | Q15: - | R15: w55
P16: - | Q16: - | R16: -

Sheet matches
A1: round | B1: winner | D1: looser | F1: score | H1: Player | I1: Position | K1: Set-up
A2: 8 | B2: =IF(OR(MD!$M$5 =1,MD!$M$5 =2), IF(MD!$M$5 =1,MD!$I$5,MD!$I$6),"#") -> 29655 | C2: =TRIM(LEFT(VLOOKUP(B2,DrawPrep!$C$3:$D$10,2,FALSE),FIND(" ",VLOOKUP(B2,DrawPrep!$C$3:$D$10,2,FALSE),1)-1)) -> ΜΠΑΛΑΣΚΑ | D2: =IF(OR(MD!$M$5 =1,MD!$M$5 =2), IF(MD!$M$5 =2,MD!$I$5,MD!$I$6),"#") -> 30544 | E2: =TRIM(LEFT(VLOOKUP(D2,DrawPrep!$C$3:$D$10,2,FALSE),FIND(" ",VLOOKUP(D2,DrawPrep!$C$3:$D$10,2,FALSE),1)-1)) -> ΔΕΣΚΟΥΛΙΔΟΥ | F2: =MD!O6 -> 42 41 | H2: =B8 -> 29655 | I2: 1st | K2: title: | L2: =Setup!$B$4 -> 3ο Ε3 2016
A3: 8 | B3: =IF(OR(MD!$M$7 =1,MD!$M$7 =2), IF(MD!$M$7 =1,MD!$I$7,MD!$I$8),"#") -> 33088 | C3: =TRIM(LEFT(VLOOKUP(B3,DrawPrep!$C$3:$D$10,2,FALSE),FIND(" ",VLOOKUP(B3,DrawPrep!$C$3:$D$10,2,FALSE),1)-1)) -> ΖΑΦΕΙΡΟΠΟΥΛΟΥ | D3: =IF(OR(MD!$M$7 =1,MD!$M$7 =2), IF(MD!$M$7 =2,MD!$I$7,MD!$I$8),"#") -> 33092 | E3: =TRIM(LEFT(VLOOKUP(D3,DrawPrep!$C$3:$D$10,2,FALSE),FIND(" ",VLOOKUP(D3,DrawPrep!$C$3:$D$10,2,FALSE),1)-1)) -> ΔΕΣΚΟΥΛΙΔΟΥ | F3: =MD!O8 -> 40 42 | H3: =D8 -> 31852 | I3: 2nd | K3: grade: | L3: =Setup!$B$5 -> e3
A4: 8 | B4: =IF(OR(MD!$M$9 =1,MD!$M$9 =2), IF(MD!$M$9 =1,MD!$I$9,MD!$I$10),"#") -> 30527 | C4: =TRIM(LEFT(VLOOKUP(B4,DrawPrep!$C$3:$D$10,2,FALSE),FIND(" ",VLOOKUP(B4,DrawPrep!$C$3:$D$10,2,FALSE),1)-1)) -> ΒΑΡΒΕΡΑΚΗ | D4: =IF(OR(MD!$M$9 =1,MD!$M$9 =2), IF(MD!$M$9 =2,MD!$I$9,MD!$I$10),"#") -> 30596 | E4: =TRIM(LEFT(VLOOKUP(D4,DrawPrep!$C$3:$D$10,2,FALSE),FIND(" ",VLOOKUP(D4,DrawPrep!$C$3:$D$10,2,FALSE),1)-1)) -> ΚΡΟΝΤΗΡΑ | F4: =MD!O10 -> 40 40 | H4: =D6 -> 33088 | I4: 3_4 | K4: age: | L4: =Setup!$B$6 -> 16
A5: 8 | B5: =IF(OR(MD!$M$11=1,MD!$M$11=2), IF(MD!$M$11=1,MD!$I$11,MD!$I$12),"#") -> 31852 | C5: =TRIM(LEFT(VLOOKUP(B5,DrawPrep!$C$3:$D$10,2,FALSE),FIND(" ",VLOOKUP(B5,DrawPrep!$C$3:$D$10,2,FALSE),1)-1)) -> ΒΕΛΙΒΑΣΑΚΗ | D5: =IF(OR(MD!$M$11=1,MD!$M$11=2), IF(MD!$M$11=2,MD!$I$11,MD!$I12),"#") -> 32222 | E5: =TRIM(LEFT(VLOOKUP(D5,DrawPrep!$C$3:$D$10,2,FALSE),FIND(" ",VLOOKUP(D5,DrawPrep!$C$3:$D$10,2,FALSE),1)-1)) -> ΣΤΑΜΟΥΛΟΥ | F5: =MD!O12 -> 40 41 | H5: =D7 -> 30527 | I5: 3_4 | K5: category: | L5: =Setup!$B$8 -> Κ16
A6: 4 | B6: =IF(OR(MD!$P$6 =1,MD!$P$6 =2), IF(MD!$P$6 =1,MD!$N$5,MD!$N$7),"#") -> 29655 | C6: =TRIM(LEFT(VLOOKUP(B6,DrawPrep!$C$3:$D$10,2,FALSE),FIND(" ",VLOOKUP(B6,DrawPrep!$C$3:$D$10,2,FALSE),1)-1)) -> ΜΠΑΛΑΣΚΑ | D6: =IF(OR(MD!$P$6 =1,MD!$P$6 =2), IF(MD!$P$6 =2,MD!$N$5,MD!$N$7),"#") -> 33088 | E6: =TRIM(LEFT(VLOOKUP(D6,DrawPrep!$C$3:$D$10,2,FALSE),FIND(" ",VLOOKUP(D6,DrawPrep!$C$3:$D$10,2,FALSE),1)-1)) -> ΖΑΦΕΙΡΟΠΟΥΛΟΥ | F6: =MD!R7 -> 60 62 | H6: =D2 -> 30544 | I6: 5_8 | K6: period: | L6: =Setup!$B$9&"-"&Setup!$B$10 -> 22-23 Οκτωβρίου
A7: 4 | B7: =IF(OR(MD!$P$10=1,MD!$P$10=2), IF(MD!$P$10=1,MD!$N$9,MD!$N$11),"#") -> 31852 | C7: =TRIM(LEFT(VLOOKUP(B7,DrawPrep!$C$3:$D$10,2,FALSE),FIND(" ",VLOOKUP(B7,DrawPrep!$C$3:$D$10,2,FALSE),1)-1)) -> ΒΕΛΙΒΑΣΑΚΗ | D7: =IF(OR(MD!$P$10=1,MD!$P$10=2), IF(MD!$P$10=2,MD!$N$9,MD!$N$11),"#") -> 30527 | E7: =TRIM(LEFT(VLOOKUP(D7,DrawPrep!$C$3:$D$10,2,FALSE),FIND(" ",VLOOKUP(D7,DrawPrep!$C$3:$D$10,2,FALSE),1)-1)) -> ΒΑΡΒΕΡΑΚΗ | F7: =MD!R11 -> 61 60 | H7: =D3 -> 33092 | I7: 5_8 | K7: organizer: | L7: =Setup!$B$3 -> Ζ΄ ΕΝΩΣΗ
A8: 2 | B8: =IF(OR(MD!$S$8 =1,MD!$S$8 =2), IF(MD!$S$8 =1,MD!$Q$6,MD!$Q$10),"#") -> 29655 | C8: =TRIM(LEFT(VLOOKUP(B8,DrawPrep!$C$3:$D$10,2,FALSE),FIND(" ",VLOOKUP(B8,DrawPrep!$C$3:$D$10,2,FALSE),1)-1)) -> ΜΠΑΛΑΣΚΑ | D8: =IF(OR(MD!$S$8 =1,MD!$S$8 =2), IF(MD!$S$8 =2,MD!$Q$6,MD!$Q$10),"#") -> 31852 | E8: =TRIM(LEFT(VLOOKUP(D8,DrawPrep!$C$3:$D$10,2,FALSE),FIND(" ",VLOOKUP(D8,DrawPrep!$C$3:$D$10,2,FALSE),1)-1)) -> ΒΕΛΙΒΑΣΑΚΗ | F8: =MD!U9 -> 62 61 | H8: =D4 -> 30596 | I8: 5_8
H9: =D5 -> 32222 | I9: 5_8
